[Event "22nd OIBM 2018"]
[Site "Gmund am Tegernsee"]
[Date "2018.11.03"]
[Round "8"]
[White "Zeier, Klaus"]
[Black "Koch, Yannick"]
[Result "1-0"]
[ECO "C00"]
[WhiteElo "2228"]
[BlackElo "2048"]
[Annotator "ChessBase"]
[PlyCount "97"]
[EventDate "2018.10.27"]
[EventType "swiss"]
[EventCountry "GER"]
[SourceTitle "playchess.com"]
[Source "ChessBase"]
[SourceQuality "1"]
[TimeControl "40/5400+30:1800+30"]

1. e4 {[%emt 0:00:00]} e6 {[%emt 0:00:00]} 2. d4 {[%emt 0:00:00]} d5 {[%emt 0:00:00]} 3. Bd3 {[%emt 0:00:00]} Nf6 {[%emt 0:00:46]} 4. e5 {[%emt 0:00:16]} Nfd7 {[%emt 0:00:07]} 5. f4 {[%emt 0:00:29]} c5 {[%emt 0:00:49]} 6. c3 {[%emt 0:00:13]} Nc6 {[%emt 0:00:37]} 7. Nf3 {[%emt 0:00:17]} cxd4 {[%emt 0:02:27]} 8. cxd4 {[%emt 0:00:13]} Qb6 {[%emt 0:00:37]} 9. Bc2 {[%emt 0:00:48]} Nb4 {[%emt 0:03:08]} 10. Nc3 {[%emt 0:00:31]} Nxc2+ {[%emt 0:00:47]} 11. Qxc2 {[%emt 0:00:04]} f5 {[%emt 0:06:42]} 12. O-O {[%emt 0:08:04]} Be7 {[%emt 0:02:33]} 13. Kh1 {[%emt 0:01:10]} O-O {[%emt 0:07:18]} 14. Rg1 {[%emt 0:01:01]} Nb8 {[%emt 0:05:45]} 15. g4 {[%emt 0:06:21]} Nc6 {[%emt 0:00:38]} 16. Be3 {[%emt 0:09:17]} Bd7 {[%emt 0:05:56]} 17. Qg2 {[%emt 0:00:57]} g6 {[%emt 0:01:51]} 18. gxf5 {[%emt 0:05:30]} Rxf5 {[%emt 0:00:12]} 19. Rac1 {[%emt 0:08:13]} Nb4 {[%emt 0:02:54]} 20. Qh3 {[%emt 0:05:05]} Nd3 {[%emt 0:04:02]} 21. Rc2 {[%emt 0:00:50]} Rc8 {[%emt 0:30:19]} 22. Rcg2 {[%emt 0:12:45]} Be8 {[%emt 0:00:48]} 23. Nxd5 {[%emt 0:00:27]} Qd8 {[%emt 0:02:55]} 24. Nc3 {[%emt 0:06:25]} Nxf4 {[%emt 0:04:02]} 25. Bxf4 {[%emt 0:02:35]} Rxf4 {[%emt 0:00:04]} 26. Qxe6+ {[%emt 0:04:38]} Kg7 {[%emt 0:06:24]} 27. Nd5 {[%emt 0:07:51]} Rxf3 {[%emt 0:04:16]} 28. Nxe7 {[%emt 0:01:37]} Bf7 {[%emt 0:02:53]} 29. Qxc8 {[%emt 0:03:53]} Qxe7 {[%emt 0:00:17]} 30. Rc1 {[%emt 0:01:38]} Bd5 {[%emt 0:00:17]} 31. Kg1 {[%emt 0:00:16]} Rf7 {[%emt 0:00:52]} 32. Rg3 {[%emt 0:00:50]} h5 {[%emt 0:04:37]} 33. Qc5 {[%emt 0:01:20]} Qe6 {[%emt 0:00:47]} 34. Qd6 {[%emt 0:00:48]} Bxa2 {[%emt 0:00:43]} 35. Qxe6 {[%emt 0:01:24]} Bxe6 {[%emt 0:00:05]} 36. Rgc3 {[%emt 0:00:33]} Rf4 {[%emt 0:00:41]} 37. Rc7+ {[%emt 0:00:27]} Kh6 {[%emt 0:00:04]} 38. Re7 {[%emt 0:02:36]} Bd5 {[%emt 0:00:20]} 39. Rd7 {[%emt 0:00:45]} Rg4+ {[%emt 0:01:18]} 40. Kf2 {[%emt 0:00:30]} Rg2+ {[%emt 0:00:14]} 41. Ke3 {[%emt 0:30:21]} Be6 {[%emt 0:01:23]} 42. Rd6 {[%emt 0:00:00]} Bf5 {[%emt 0:00:31]} 43. e6 {[%emt 0:00:00]} Rxh2 {[%emt 0:02:19]} 44. Re1 {[%emt 0:00:00]} Rh3+ {[%emt 0:03:31]} 45. Kf4 {[%emt 0:00:00]} Rh4+ {[%emt 0:02:38]} 46. Ke5 {[%emt 0:00:00]} Kg7 {[%emt 0:00:20]} 47. Rd7+ {[%emt 0:00:00]} Kf8 {[%emt 0:00:07]} 48. Kf6 {[%emt 0:00:00]} Ke8 {[%emt 0:00:48]} 49. Rg7 {[%emt 0:00:00]} 1-0

[Event "22nd OIBM 2018"]
[Site "Gmund am Tegernsee"]
[Date "2018.11.03"]
[Round "8"]
[White "Moeldner, Juergen"]
[Black "Finkenflugel, Renzo"]
[Result "1-0"]
[ECO "B12"]
[WhiteElo "2209"]
[BlackElo "1990"]
[Annotator "NA"]
[PlyCount "47"]
[EventDate "2018.10.27"]
[EventType "swiss"]
[EventCountry "GER"]
[SourceTitle "playchess.com"]
[Source "ChessBase"]
[SourceQuality "1"]
[TimeControl "40/5400+30:1800+30"]

1. e4 {[%emt 0:00:00]} c6 {[%emt 0:00:00]} 2. d4 {[%emt 0:00:03]} d5 {[%emt 0:00:00]} 3. e5 {[%emt 0:00:14]} Bf5 {[%emt 0:00:00]} 4. Nf3 {[%emt 0:00:09]} e6 {[%emt 0:00:02]} 5. Be2 {[%emt 0:00:07]} Ne7 {[%emt 0:00:07]} 6. Nbd2 {[%emt 0:00:51]} c5 {[%emt 0:02:22]} 7. dxc5 {[%emt 0:01:59]} Nec6 {[%emt 0:01:40]} 8. Nb3 {[%emt 0:03:42]} Nd7 {[%emt 0:04:13]} 9. Be3 {[%emt 0:04:09]} Be4 {[%emt 0:17:27]} 10. Bb5 {[%emt 0:07:09]} Bxf3 {[%emt 0:01:24]} 11. Qxf3 {[%emt 0:01:51]} Ncxe5 {[%emt 0:10:30] [#]} 12. Qg3 $1 {[%emt 0:02:04]} Nc6 {[%emt 0:06:16]} 13. O-O-O {[%emt 0:02:26]} g6 {[%emt 0:05:53]} 14. Rhe1 {[%emt 0:09:44]} Be7 {[%emt 0:04:36]} 15. Bh6 {[%emt 0:09:20]} Rc8 {[%emt 0:09:38]} 16. Kb1 {[%emt 0:08:27]} a6 $16 {[%emt 0:03:18]} 17. Ba4 {[%emt 0:02:53]} Qc7 {[%emt 0:07:10]} 18. Qh3 {[%emt 0:02:57]} b5 {[%emt 0:07:11]} 19. cxb6 {[%emt 0:00:57]} Nxb6 {[%emt 0:00:14]} 20. Bg7 {[%emt 0:06:23]} Rg8 {[%emt 0:02:09]} 21. Bxc6+ {[%emt 0:00:45]} Qxc6 {[%emt 0:00:09]} 22. Qxh7 {[%emt 0:00:52]} Qxc2+ {[%emt 0:01:53]} 23. Ka1 {[%emt 0:00:02]} Kd7 {[%emt 0:00:58]} 24. Bd4 {[%emt 0:03:42]} 1-0

[Event "22nd OIBM 2018"]
[Site "Gmund am Tegernsee"]
[Date "2018.11.03"]
[Round "8"]
[White "Schaefer, Michael"]
[Black "Ott, Josef Sebastian"]
[Result "1-0"]
[ECO "A61"]
[WhiteElo "2185"]
[BlackElo "1961"]
[Annotator "NA"]
[PlyCount "49"]
[EventDate "2018.10.27"]
[EventType "swiss"]
[EventCountry "GER"]
[SourceTitle "playchess.com"]
[Source "ChessBase"]
[SourceQuality "1"]
[TimeControl "40/5400+30:1800+30"]

1. d4 {[%emt 0:00:00]} Nf6 {[%emt 0:00:00]} 2. Nf3 {[%emt 0:00:00]} c5 {[%emt 0:00:00]} 3. d5 {[%emt 0:01:36]} e6 {[%emt 0:00:02]} 4. c4 {[%emt 0:00:27]} d6 {[%emt 0:00:19]} 5. Nc3 {[%emt 0:00:06]} exd5 {[%emt 0:00:03]} 6. cxd5 {[%emt 0:00:09]} g6 {[%emt 0:00:09]} 7. Bf4 {[%emt 0:00:06]} a6 {[%emt 0:00:48]} 8. a4 {[%emt 0:00:05]} Bg7 {[%emt 0:00:55]} 9. h3 {[%emt 0:00:25]} O-O {[%emt 0:03:20]} 10. e3 {[%emt 0:04:56]} Qc7 {[%emt 0:16:43] LiveBook: 7 Games A61: Modern Benoni: Nf3 without early e4} 11. Be2 {[%emt 0:02:23]} Nfd7 $146 {[%emt 0:05:25]} ({Predecessor:} 11... Nbd7 12. O-O Rb8 13. Rc1 Re8 14. Nd2 Ne5 15. Bh2 Qe7 16. Kh1 Rd8 17. a5 Ne8 18. f4 {1-0 (43) Nikolic,P (2622)-Bogut,Z (2423) Bihac 2016}) 12. O-O {[%emt 0:01:56]} Ne5 {[%emt 0:01:11]} (12... Re8 $142) 13. Bxe5 {[%emt 0:01:19]} dxe5 {[%emt 0:00:25]} 14. Nd2 {[%emt 0:02:22]} Rd8 {[%emt 0:08:41]} 15. Nc4 {[%emt 0:05:45]} f5 {[%emt 0:01:36]} 16. d6 {[%emt 0:04:13]} Qf7 {[%emt 0:02:54]} 17. Nb6 {[%emt 0:02:49]} Ra7 {[%emt 0:01:45]} 18. Nxc8 {[%emt 0:00:23]} Rxc8 {[%emt 0:00:22]} 19. a5 {[%emt 0:00:57]} Nd7 {[%emt 0:18:26]} 20. Nd5 {[%emt 0:04:52]} Kh8 {[%emt 0:02:51]} 21. Bc4 {[%emt 0:01:32]} Rc6 {[%emt 0:08:43]} 22. Nb6 {[%emt 0:10:44]} Qe8 {[%emt 0:01:37]} 23. Qa4 {[%emt 0:01:03]} Nxb6 {[%emt 0:01:51]} 24. axb6 {[%emt 0:03:52]} Ra8 $18 {[%emt 0:01:33]} 25. Bb5 {[%emt 0:00:20]} 1-0

[Event "22nd OIBM 2018"]
[Site "Gmund am Tegernsee"]
[Date "2018.11.03"]
[Round "8"]
[White "Kannenberg, Karl-Heinz"]
[Black "Maruntis, Patrik-Robert"]
[Result "0-1"]
[ECO "D05"]
[WhiteElo "2182"]
[BlackElo "1680"]
[Annotator "NA"]
[PlyCount "68"]
[EventDate "2018.10.27"]
[EventType "swiss"]
[EventCountry "GER"]
[SourceTitle "playchess.com"]
[Source "ChessBase"]
[SourceQuality "1"]
[TimeControl "40/5400+30:1800+30"]

1. d4 {[%emt 0:00:00]} d5 {[%emt 0:00:00]} 2. Nf3 {[%emt 0:00:00]} Nf6 {[%emt 0:00:00]} 3. e3 {[%emt 0:00:12]} e6 {[%emt 0:00:46]} 4. Bd3 {[%emt 0:00:37]} Bd6 {[%emt 0:00:22]} 5. Nbd2 {[%emt 0:00:31]} Nbd7 {[%emt 0:02:41]} 6. c3 {[%emt 0:00:46]} b6 {[%emt 0:04:37]} 7. e4 {[%emt 0:04:33]} dxe4 {[%emt 0:00:49]} 8. Nxe4 {[%emt 0:00:10]} Be7 {[%emt 0:03:23]} 9. O-O {[%emt 0:13:10]} Bb7 {[%emt 0:00:58]} 10. Qe2 {[%emt 0:03:41]} Nxe4 {[%emt 0:10:23] C10: French with 3 Nc3: Unusual Black 3rd moves and 3...dxe4} 11. Bxe4 {[%emt 0:00:14]} Bxe4 {[%emt 0:00:05]} 12. Qxe4 {[%emt 0:00:10]} O-O {[%emt 0:00:38]} 13. Rd1 {[%emt 0:02:31]} c5 $146 {[%emt 0:19:15]} ({Predecessor:} 13... b5 14. Qe2 c6 15. a4 a6 16. Bf4 Nb6 17. axb5 axb5 18. Ne5 Qd5 {1-0 (58) Beerdsen,T (2404)-Fries Nielsen,J (2356) Hamburg 2016}) 14. Qe2 {[%emt 0:02:06]} Qc7 {[%emt 0:07:50]} 15. d5 {[%emt 0:12:35]} e5 {[%emt 0:00:26]} 16. c4 {[%emt 0:11:34]} f5 {[%emt 0:02:21]} 17. Ng5 {[%emt 0:02:37]} Bxg5 {[%emt 0:05:14]} 18. Bxg5 {[%emt 0:00:11]} Qd6 {[%emt 0:00:10]} 19. Bd2 {[%emt 0:02:19]} Rae8 {[%emt 0:04:24]} 20. Rac1 {[%emt 0:03:27]} f4 {[%emt 0:02:19]} 21. f3 {[%emt 0:01:18]} Qg6 {[%emt 0:10:47]} 22. Rf1 {[%emt 0:18:35]} e4 {[%emt 0:03:23]} 23. Bc3 $15 {[%emt 0:04:57]} exf3 {[%emt 0:01:37]} 24. Qxf3 {[%emt 0:00:15]} Re3 {[%emt 0:00:40]} 25. Qd1 {[%emt 0:01:15]} Rf5 {[%emt 0:06:33]} 26. Rf3 {[%emt 0:02:34]} Rg5 {[%emt 0:01:19]} 27. Qf1 {[%emt 0:01:12]} Re4 {[%emt 0:03:20]} 28. Re1 {[%emt 0:05:07]} Rxe1 {[%emt 0:02:13]} 29. Bxe1 {[%emt 0:00:11]} Qe4 {[%emt 0:00:54]} 30. Bc3 {[%emt 0:00:54]} Ne5 {[%emt 0:02:30]} 31. Bxe5 {[%emt 0:01:37]} Rxe5 {[%emt 0:00:21]} 32. Rxf4 {[%emt 0:01:42]} Qe3+ {[%emt 0:00:15]} 33. Kh1 {[%emt 0:00:09]} Qxf4 {[%emt 0:00:10]} 34. Kg1 Qe3+ 0-1

[Event "22nd OIBM 2018"]
[Site "Gmund am Tegernsee"]
[Date "2018.11.03"]
[Round "8"]
[White "Hoeller, Armin"]
[Black "Bente, Bjoern"]
[Result "0-1"]
[ECO "A13"]
[WhiteElo "2007"]
[BlackElo "2228"]
[Annotator "NA"]
[PlyCount "50"]
[EventDate "2018.10.27"]
[EventType "swiss"]
[EventCountry "GER"]
[SourceTitle "playchess.com"]
[Source "ChessBase"]
[SourceQuality "1"]
[TimeControl "40/5400+30:1800+30"]

1. c4 {[%emt 0:00:00]} e6 {[%emt 0:03:57]} 2. g3 {[%emt 0:00:00]} d5 {[%emt 0:00:07]} 3. Bg2 {[%emt 0:00:11]} Nf6 {[%emt 0:00:05]} 4. Nf3 {[%emt 0:02:24]} dxc4 {[%emt 0:00:08]} 5. Na3 {[%emt 0:05:57]} Bxa3 {[%emt 0:00:33]} 6. bxa3 {[%emt 0:00:02]} O-O {[%emt 0:02:30] LiveBook: 73 Games} 7. Bb2 {[%emt 0:03:07] A13: English Opening: 1...e6} Nd5 {[%emt 0:17:28]} 8. Qa4 $146 {[%emt 0:07:50] [#]} ({Predecessor:} 8. Rc1 b5 9. d3 c3 10. Bxc3 c5 11. Qb3 Nd7 12. Bd2 Ba6 13. O-O Rc8 14. Rfd1 Qe7 {0-1 (71) Marin,M (2555)-Rodriguez Vargas,O (2419) Barcelona 2011}) 8... Nb6 $1 {[%emt 0:00:42]} 9. Qc2 {[%emt 0:00:23]} Nc6 {[%emt 0:00:56]} 10. h4 {[%emt 0:04:00]} f6 {[%emt 0:01:38]} 11. O-O-O {[%emt 0:22:36]} e5 {[%emt 0:01:16]} 12. d4 {[%emt 0:06:45]} cxd3 {[%emt 0:00:16]} 13. Qb3+ {[%emt 0:06:04]} Kh8 {[%emt 0:00:07]} 14. h5 {[%emt 0:03:50]} Qe7 {[%emt 0:02:42]} 15. Nh4 {[%emt 0:01:31]} Be6 {[%emt 0:02:11]} 16. Ng6+ {[%emt 0:03:56]} hxg6 {[%emt 0:00:05]} 17. hxg6+ {[%emt 0:03:33]} Kg8 {[%emt 0:00:01]} 18. Qxd3 {[%emt 0:05:55]} Rad8 $19 {[%emt 0:04:05]} 19. Qf3 {[%emt 0:07:36]} Qc5+ {[%emt 0:02:13]} 20. Kb1 {[%emt 0:00:49]} Rxd1+ {[%emt 0:00:16]} 21. Rxd1 {[%emt 0:00:06]} Ne7 {[%emt 0:01:04]} 22. Rc1 {[%emt 0:09:25]} Nc4 {[%emt 0:00:53]} 23. Qd3 {[%emt 0:04:16]} b5 {[%emt 0:02:40]} 24. Rh1 {[%emt 0:01:05]} Nxb2 {[%emt 0:01:36]} 25. Kxb2 {[%emt 0:00:24]} Qd4+ {[%emt 0:00:11]} 0-1

[Event "22nd OIBM 2018"]
[Site "Gmund am Tegernsee"]
[Date "2018.11.03"]
[Round "8"]
[White "Metodiev, Martin"]
[Black "Oberhofer, Cedric"]
[Result "0-1"]
[ECO "D85"]
[WhiteElo "1974"]
[BlackElo "2213"]
[Annotator "NA"]
[PlyCount "37"]
[EventDate "2018.10.27"]
[EventType "swiss"]
[EventCountry "GER"]
[SourceTitle "playchess.com"]
[Source "ChessBase"]
[SourceQuality "1"]
[TimeControl "40/5400+30:1800+30"]

1. d4 {[%emt 0:00:00]} Nf6 {[%emt 0:00:00]} 2. c4 {[%emt 0:00:00]} g6 {[%emt 0:00:00]} 3. Nc3 {[%emt 0:00:07]} d5 {[%emt 0:00:01]} 4. cxd5 {[%emt 0:00:13]} Nxd5 {[%emt 0:00:07]} 5. e4 {[%emt 0:00:14]} Nxc3 {[%emt 0:00:14]} 6. bxc3 {[%emt 0:00:15]} c5 {[%emt 0:00:17]} 7. Nf3 {[%emt 0:01:05]} Bg7 {[%emt 0:00:08]} 8. Rb1 {[%emt 0:00:09]} O-O {[%emt 0:04:54]} 9. Be2 {[%emt 0:01:10]} Nc6 {[%emt 0:00:59]} 10. d5 {[%emt 0:00:27]} Ne5 {[%emt 0:00:09]} 11. Nd2 {[%emt 0:05:39]} f5 {[%emt 0:15:08]} 12. Rb5 {[%emt 0:19:50]} (12. O-O $11) 12... a6 {[%emt 0:13:57]} 13. Rb3 {[%emt 0:03:32]} (13. Rb2 $15) 13... fxe4 {[%emt 0:05:06]} 14. Nxe4 {[%emt 0:00:13]} c4 {[%emt 0:02:44]} 15. Rb4 {[%emt 0:01:56]} Bf5 {[%emt 0:04:08]} 16. Nc5 {[%emt 0:03:05]} b6 {[%emt 0:04:22]} ({Schwächer ist} 16... Nd3+ 17. Nxd3 cxd3 18. Bf3 $19) 17. Na4 {[%emt 0:00:42]} Nd3+ {[%emt 0:03:06]} 18. Bxd3 $19 {[%emt 0:00:05]} Bxd3 {[%emt 0:00:05]} 19. Bd2 {[%emt 0:02:18]} 0-1

[Event "22nd OIBM 2018"]
[Site "Gmund am Tegernsee"]
[Date "2018.11.04"]
[Round "9"]
[White "Meins, Gerlef"]
[Black "Schrems, Hermann"]
[Result "1-0"]
[ECO "A05"]
[WhiteElo "2408"]
[BlackElo "2154"]
[Annotator "NA"]
[PlyCount "49"]
[EventDate "2018.10.27"]
[EventType "swiss"]
[EventCountry "GER"]
[SourceTitle "playchess.com"]
[Source "ChessBase"]
[SourceQuality "1"]
[TimeControl "40/5400+30:1800+30"]

1. Nf3 {[%emt 0:00:00]} Nf6 {[%emt 0:00:00]} 2. c4 {[%emt 0:00:00]} c5 {[%emt 0:00:00]} 3. g3 {[%emt 0:01:39]} b6 {[%emt 0:00:00]} 4. Bg2 {[%emt 0:00:18]} Bb7 {[%emt 0:00:00]} 5. O-O {[%emt 0:00:17]} g6 {[%emt 0:00:05]} 6. Nc3 {[%emt 0:04:50]} Bg7 {[%emt 0:00:07]} 7. d4 {[%emt 0:11:44]} cxd4 {[%emt 0:00:50]} 8. Qxd4 {[%emt 0:00:12]} O-O {[%emt 0:00:09]} 9. Qh4 {[%emt 0:01:56]} d6 {[%emt 0:00:36]} 10. Bh6 {[%emt 0:01:49]} Nbd7 {[%emt 0:00:06]} 11. Bxg7 {[%emt 0:05:52]} Kxg7 {[%emt 0:00:08]} 12. Rfd1 {[%emt 0:02:40]} Rc8 {[%emt 0:00:26]} 13. Rac1 {[%emt 0:12:01]} a6 {[%emt 0:03:20]} 14. b3 {[%emt 0:08:49]} Qc7 {[%emt 0:03:14]} 15. Bh3 {[%emt 0:06:38]} Rfd8 {[%emt 0:03:44]} 16. Qf4 {[%emt 0:16:18]} Qb8 {[%emt 0:02:31]} 17. Qe3 {[%emt 0:03:32]} e6 {[%emt 0:07:44]} 18. Ng5 {[%emt 0:01:36]} Rc5 {[%emt 0:02:59]} 19. Nxf7 {[%emt 0:06:53]} Kxf7 {[%emt 0:00:18]} 20. Qxe6+ {[%emt 0:00:07]} Kg7 {[%emt 0:00:10]} 21. Qe7+ {[%emt 0:00:40]} Kh8 {[%emt 0:01:23]} 22. Bxd7 {[%emt 0:01:18]} Nxd7 {[%emt 0:00:09]} 23. Rxd6 {[%emt 0:01:51]} Re5 {[%emt 0:00:11]} 24. Qh4 {[%emt 0:00:43]} Rh5 {[%emt 0:01:25]} 25. Qd4+ {[%emt 0:00:11]} 1-0

[Event "22nd OIBM 2018"]
[Site "Gmund am Tegernsee"]
[Date "2018.11.04"]
[Round "9"]
[White "Morawietz, Dieter"]
[Black "Pieper, Thomas"]
[Result "1-0"]
[ECO "C65"]
[WhiteElo "2408"]
[BlackElo "2213"]
[Annotator "NA"]
[PlyCount "47"]
[EventDate "2018.10.27"]
[EventType "swiss"]
[EventCountry "GER"]
[SourceTitle "playchess.com"]
[Source "ChessBase"]
[SourceQuality "1"]
[TimeControl "40/5400+30:1800+30"]

1. e4 {[%emt 0:00:00]} e5 {[%emt 0:00:00]} 2. Nf3 {[%emt 0:00:00]} Nc6 {[%emt 0:00:00]} 3. Bb5 {[%emt 0:00:00]} Nf6 {[%emt 0:00:08]} 4. d3 {[%emt 0:00:11]} Bc5 {[%emt 0:00:05]} 5. Nbd2 {[%emt 0:00:25]} a6 {[%emt 0:01:55]} 6. Bxc6 {[%emt 0:00:40]} dxc6 {[%emt 0:00:15]} 7. Nb3 {[%emt 0:08:27]} Bd6 {[%emt 0:01:48]} 8. d4 {[%emt 0:00:11]} Nxe4 {[%emt 0:04:52]} 9. Qe2 {[%emt 0:07:05]} Bf5 {[%emt 0:07:27]} 10. O-O {[%emt 0:03:14]} exd4 {[%emt 0:12:29]} 11. Bg5 {[%emt 0:23:18]} f6 $15 {[%emt 0:17:05]} 12. Nh4 {[%emt 0:05:49]} O-O {[%emt 0:02:11]} 13. Bc1 {[%emt 0:12:34]} Qd7 {[%emt 0:21:41]} 14. g4 {[%emt 0:00:20]} Bxg4 {[%emt 0:05:07]} 15. Qxe4 {[%emt 0:00:33]} Rfe8 {[%emt 0:05:15]} 16. Qxd4 {[%emt 0:02:39]} g5 {[%emt 0:05:35]} 17. f3 {[%emt 0:05:13]} Be6 {[%emt 0:00:24]} 18. Qxf6 {[%emt 0:12:25]} Be7 {[%emt 0:07:19]} 19. Qh6 {[%emt 0:06:38]} gxh4 {[%emt 0:01:54]} 20. Kh1 {[%emt 0:00:09]} Bf8 {[%emt 0:02:37]} 21. Rg1+ {[%emt 0:00:24]} Kh8 {[%emt 0:00:08]} 22. Qxh4 {[%emt 0:06:43]} Qf7 {[%emt 0:00:28]} 23. Bf4 {[%emt 0:00:18]} Bg7 {[%emt 0:00:37]} 24. Rxg7 1-0

[Event "22nd OIBM 2018"]
[Site "Gmund am Tegernsee"]
[Date "2018.11.04"]
[Round "9"]
[White "Zajogin, Alexander"]
[Black "Schaefer, Michael"]
[Result "1-0"]
[ECO "D31"]
[WhiteElo "2408"]
[BlackElo "2185"]
[Annotator "NA"]
[PlyCount "65"]
[EventDate "2018.10.27"]
[EventType "swiss"]
[EventCountry "GER"]
[SourceTitle "playchess.com"]
[Source "ChessBase"]
[SourceQuality "1"]
[TimeControl "40/5400+30:1800+30"]

1. d4 {[%emt 0:00:00]} d5 {[%emt 0:00:00]} 2. c4 {[%emt 0:00:00]} e6 {[%emt 0:00:00]} 3. Nc3 {[%emt 0:00:13]} Be7 {[%emt 0:00:00]} 4. cxd5 {[%emt 0:00:48]} exd5 {[%emt 0:00:06] LiveBook: 2195 Games} 5. e3 {[%emt 0:08:45]} Nf6 {[%emt 0:01:46]} 6. Bd3 {[%emt 0:00:05]} O-O {[%emt 0:00:15]} 7. Nge2 {[%emt 0:00:37]} c5 {[%emt 0:00:34]} 8. O-O {[%emt 0:01:59]} Nc6 {[%emt 0:01:05]} 9. Nf4 {[%emt 0:02:19]} a6 {[%emt 0:06:51]} 10. dxc5 {[%emt 0:02:58]} Bg4 $16 {[%emt 0:12:19]} 11. Qa4 {[%emt 0:31:39]} Bxc5 {[%emt 0:17:24]} 12. Nfxd5 {[%emt 0:01:47]} Nxd5 {[%emt 0:03:59]} 13. Qxg4 {[%emt 0:00:06]} Nxc3 {[%emt 0:00:19]} 14. Qf5 {[%emt 0:00:04]} g6 {[%emt 0:01:27]} 15. Qxc5 {[%emt 0:00:06]} Qxd3 {[%emt 0:00:11]} 16. bxc3 {[%emt 0:00:10]} Qc2 {[%emt 0:02:33]} 17. Ba3 {[%emt 0:04:28]} Rfd8 {[%emt 0:03:34]} 18. Rab1 {[%emt 0:07:11]} Qxa2 {[%emt 0:07:06]} 19. Rxb7 {[%emt 0:03:46]} Rac8 {[%emt 0:02:55]} 20. h3 {[%emt 0:07:41]} Rd5 {[%emt 0:06:24]} 21. Rc7 {[%emt 0:01:40]} Rxc5 {[%emt 0:00:58]} 22. Rxc8+ {[%emt 0:00:07]} Kg7 {[%emt 0:00:15]} 23. Bxc5 {[%emt 0:00:16]} Qd5 {[%emt 0:08:13]} 24. Bf8+ {[%emt 0:05:12]} Kf6 {[%emt 0:00:44]} 25. c4 {[%emt 0:00:27]} Qd7 {[%emt 0:00:25]} 26. Ra8 {[%emt 0:02:50]} Qb7 {[%emt 0:00:13]} 27. Re8 {[%emt 0:00:19]} a5 {[%emt 0:01:26]} 28. Rd1 {[%emt 0:01:58]} h5 {[%emt 0:02:58]} 29. f4 {[%emt 0:02:40]} g5 {[%emt 0:06:59]} 30. Rd6+ {[%emt 0:01:28]} Kf5 {[%emt 0:00:09]} 31. Rd5+ {[%emt 0:00:50]} Kf6 {[%emt 0:00:21]} 32. Rxg5 {[%emt 0:00:33]} a4 {[%emt 0:00:18]} 33. Bg7# {[%emt 0:00:07]} 1-0

[Event "22nd OIBM 2018"]
[Site "Gmund am Tegernsee"]
[Date "2018.11.04"]
[Round "9"]
[White "Pirrot, Dieter"]
[Black "Subramanian, Aditya"]
[Result "0-1"]
[ECO "A02"]
[WhiteElo "2373"]
[BlackElo "2151"]
[Annotator "NA"]
[PlyCount "84"]
[EventDate "2018.10.27"]
[EventType "swiss"]
[EventCountry "GER"]
[SourceTitle "playchess.com"]
[Source "ChessBase"]
[SourceQuality "1"]
[TimeControl "40/5400+30:1800+30"]

1. f4 {[%emt 0:00:00]} Nf6 {[%emt 0:00:52]} 2. Nf3 {[%emt 0:00:00]} g6 {[%emt 0:00:08]} 3. g3 {[%emt 0:00:00]} Bg7 {[%emt 0:00:06]} 4. Bg2 {[%emt 0:00:00]} d5 {[%emt 0:00:54]} 5. d3 {[%emt 0:00:33]} c5 {[%emt 0:00:54]} 6. O-O {[%emt 0:00:21]} Nc6 {[%emt 0:00:56]} 7. c3 {[%emt 0:00:35]} O-O {[%emt 0:02:00]} 8. Na3 {[%emt 0:00:17]} b6 {[%emt 0:03:37]} 9. Qa4 {[%emt 0:12:51]} Bd7 {[%emt 0:14:44]} 10. Qc2 {[%emt 0:06:31]} Rc8 {[%emt 0:07:14]} 11. e4 {[%emt 0:05:21]} d4 {[%emt 0:07:24]} 12. h3 {[%emt 0:06:22]} Ne8 {[%emt 0:05:54]} 13. e5 {[%emt 0:14:36]} Nc7 {[%emt 0:05:08]} 14. Qf2 {[%emt 0:06:52]} Be6 {[%emt 0:09:15]} 15. c4 {[%emt 0:08:35]} f6 {[%emt 0:04:58]} 16. exf6 {[%emt 0:02:53]} exf6 {[%emt 0:00:21]} 17. Nc2 {[%emt 0:02:14]} Qd7 {[%emt 0:01:02]} 18. g4 {[%emt 0:04:58]} f5 {[%emt 0:01:45]} 19. g5 {[%emt 0:02:34]} Bf7 {[%emt 0:02:57]} 20. Bd2 {[%emt 0:01:01]} a5 {[%emt 0:01:04]} 21. h4 {[%emt 0:02:33]} Rfe8 {[%emt 0:04:40]} 22. h5 {[%emt 0:02:31]} Re7 {[%emt 0:02:11]} 23. Nh4 {[%emt 0:04:09]} Rce8 {[%emt 0:00:28]} 24. Rae1 {[%emt 0:00:48]} Qd6 {[%emt 0:08:02]} 25. Qf3 {[%emt 0:06:25]} Rxe1 {[%emt 0:02:02]} 26. Nxe1 {[%emt 0:00:19]} Re6 {[%emt 0:00:58]} 27. Rf2 {[%emt 0:02:36]} Qe7 {[%emt 0:01:59]} 28. Kf1 {[%emt 0:00:39]} Be8 {[%emt 0:01:10]} 29. Re2 {[%emt 0:00:39]} Rxe2 {[%emt 0:00:47]} 30. Qxe2 {[%emt 0:00:06]} Qxe2+ {[%emt 0:00:08]} 31. Kxe2 {[%emt 0:00:04]} Ne7 {[%emt 0:02:15]} 32. Nef3 {[%emt 0:04:01]} gxh5 {[%emt 0:02:36]} 33. Ne5 {[%emt 0:00:27]} Bxe5 {[%emt 0:01:12]} 34. fxe5 {[%emt 0:00:07]} Bg6 {[%emt 0:02:06]} 35. Bb7 {[%emt 0:02:25]} Kf7 {[%emt 0:00:59]} 36. Ng2 {[%emt 0:00:19]} Ke6 {[%emt 0:01:37]} 37. Kf3 {[%emt 0:00:22]} Be8 {[%emt 0:00:37]} 38. Nf4+ {[%emt 0:02:20]} Kxe5 {[%emt 0:00:59]} 39. Kg3 {[%emt 0:00:17]} Ne6 {[%emt 0:01:19]} 40. Bd5 {[%emt 0:00:50]} h4+ {[%emt 0:01:27]} 41. Kf3 {[%emt 0:30:24]} Nxd5 {[%emt 0:30:43]} 42. cxd5 {[%emt 0:00:00]} Nxg5+ {[%emt 0:00:00] Bc1} 0-1